[Event "Titled Tuesday Blitz November 2 2021"]
[White "Aldokhin, Ivan"]
[Black "Sviridov, Valery"]
[WhiteFideId "24115720"]
[BlackFideId "4120680"]
[WhiteElo "2231"]
[BlackElo "2454"]
[Result "0-1"]
[Round "02"]
[TimeControl "180+1"]
[Date "2021.11.02"]
[WhiteClock "0:00:06"]
[BlackClock "0:00:23"]

1. e4 {[%clk 0:03:00]}  Nf6 {[%clk 0:02:59]} 2. e5 {[%clk 0:03:00]}  Nd5 {[%clk 0:02:59]} 3. Nc3 {[%clk 0:02:59]}  e6 {[%clk 0:03:00]} 4. d4 {[%clk 0:02:57]}  d6 {[%clk 0:02:59]} 5. Nxd5 {[%clk 0:02:48]}  exd5 {[%clk 0:02:59]} 6. Bf4 {[%clk 0:02:43]}  dxe5 {[%clk 0:02:57]} 7. dxe5 {[%clk 0:02:42]}  c5 {[%clk 0:02:57]} 8. c4 {[%clk 0:02:35]}  d4 {[%clk 0:02:38]} 9. Bd3 {[%clk 0:02:33]}  Nc6 {[%clk 0:02:38]} 10. h3 {[%clk 0:02:25]}  Qa5+ {[%clk 0:02:36]} 11. Bd2 {[%clk 0:02:10]}  Qb6 {[%clk 0:02:36]} 12. f4 {[%clk 0:01:57]}  Qxb2 {[%clk 0:02:30]} 13. Nf3 {[%clk 0:01:44]}  Qa3 {[%clk 0:02:23]} 14. Be4 {[%clk 0:01:29]}  Be7 {[%clk 0:01:54]} 15. O-O {[%clk 0:01:28]}  g6 {[%clk 0:01:32]} 16. Rb1 {[%clk 0:00:57]}  Qa6 {[%clk 0:01:12]} 17. Bd5 {[%clk 0:00:43]}  Be6 {[%clk 0:01:06]} 18. Qb3 {[%clk 0:00:41]}  O-O-O {[%clk 0:01:05]} 19. Bxe6+ {[%clk 0:00:31]}  fxe6 {[%clk 0:01:06]} 20. Qd3 {[%clk 0:00:31]}  Rhf8 {[%clk 0:01:00]} 21. Rb5 {[%clk 0:00:30]}  b6 {[%clk 0:00:59]} 22. Ra1 {[%clk 0:00:20]}  Qb7 {[%clk 0:00:58]} 23. a4 {[%clk 0:00:20]}  a5 {[%clk 0:00:58]} 24. Rab1 {[%clk 0:00:18]}  Nb4 {[%clk 0:00:58]} 25. Bxb4 {[%clk 0:00:18]}  cxb4 {[%clk 0:00:59]} 26. g3 {[%clk 0:00:13]}  g5 {[%clk 0:00:59]} 27. Nd2 {[%clk 0:00:11]}  gxf4 {[%clk 0:00:59]} 28. g4 {[%clk 0:00:11]}  f3 {[%clk 0:00:58]} 29. Ne4 {[%clk 0:00:11]}  Rf4 {[%clk 0:00:58]} 30. Nd6+ {[%clk 0:00:06]}  Bxd6 {[%clk 0:00:58]} 31. exd6 {[%clk 0:00:06]}  f2+ {[%clk 0:00:58]} 32. Kh2 {[%clk 0:00:05]}  Qc6 {[%clk 0:00:50]} 33. c5 {[%clk 0:00:05]}  bxc5 {[%clk 0:00:45]} 34. Rc1 {[%clk 0:00:05]}  Rf3 {[%clk 0:00:29]} 35. Rbxc5 {[%clk 0:00:04]}  Rxd3 {[%clk 0:00:28]} 36. Rxc6+ {[%clk 0:00:05]}  Kd7 {[%clk 0:00:29]} 37. Ra6 {[%clk 0:00:05]}  Rc3 {[%clk 0:00:29]} 38. Rf1 {[%clk 0:00:05]}  Rf8 {[%clk 0:00:28]} 39. Kg2 {[%clk 0:00:05]}  e5 {[%clk 0:00:24]} 40. Rxf2 {[%clk 0:00:05]}  Rxf2+ {[%clk 0:00:24]} 41. Kxf2 {[%clk 0:00:06]}  e4 {[%clk 0:00:25]} 42. Ke2 {[%clk 0:00:06]}  Rc2+ {[%clk 0:00:25]} 43. Kd1 {[%clk 0:00:06]}  b3 {[%clk 0:00:25]} 44. Rb6 {[%clk 0:00:04]}  Rc3 {[%clk 0:00:26]} 45. h4 {[%clk 0:00:03]}  e3 {[%clk 0:00:24]} 46. Ke2 {[%clk 0:00:02]}  Rc2+ {[%clk 0:00:24]} 47. Kd3 {[%clk 0:00:02]}  Rd2+ {[%clk 0:00:24]} 48. Kc4 {[%clk 0:00:03]}  e2 {[%clk 0:00:25]} 49. Kd5 {[%clk 0:00:03]}  e1=Q {[%clk 0:00:24]} 50. Rb7+ {[%clk 0:00:04]}  Kc8 {[%clk 0:00:25]} 51. Rc7+ {[%clk 0:00:04]}  Kd8 {[%clk 0:00:25]} 52. Kc6 {[%clk 0:00:05]}  Qh1+ {[%clk 0:00:24]} 53. Kb6 {[%clk 0:00:04]}  Qh2 {[%clk 0:00:23]} 54. Kc6 {[%clk 0:00:04]}  Rc2+ {[%clk 0:00:22]} 55. Kb7 {[%clk 0:00:04]}  Rxc7+ {[%clk 0:00:22]} 56. dxc7+ {[%clk 0:00:05]}  Qxc7+ {[%clk 0:00:23]} 57. Ka8 {[%clk 0:00:06]}  b2 {[%clk 0:00:23]} 0-1


[Site "https://www.chess.com"]

[Event "Titled Tuesday Blitz November 2 2021"]
[White "Ambartsumova, Karina"]
[Black "Jobava, Baadur"]
[WhiteFideId "4166299"]
[BlackFideId "13601520"]
[WhiteElo "2262"]
[BlackElo "2731"]
[Result "0-1"]
[Round "02"]
[TimeControl "180+1"]
[Date "2021.11.02"]
[WhiteClock "0:00:03"]
[BlackClock "0:00:26"]

1. d4 {[%clk 0:03:00]}  d5 {[%clk 0:02:58]} 2. Nf3 {[%clk 0:03:00]}  c6 {[%clk 0:02:59]} 3. c4 {[%clk 0:02:59]}  Nf6 {[%clk 0:03:00]} 4. g3 {[%clk 0:02:59]}  Bf5 {[%clk 0:02:59]} 5. Qb3 {[%clk 0:02:57]}  Qc8 {[%clk 0:02:57]} 6. Nc3 {[%clk 0:02:55]}  e6 {[%clk 0:02:57]} 7. Bg2 {[%clk 0:02:53]}  Be7 {[%clk 0:02:56]} 8. Bd2 {[%clk 0:02:53]}  Nbd7 {[%clk 0:02:51]} 9. O-O {[%clk 0:02:50]}  h6 {[%clk 0:02:51]} 10. Rac1 {[%clk 0:02:45]}  O-O {[%clk 0:02:49]} 11. cxd5 {[%clk 0:02:35]}  exd5 {[%clk 0:02:48]} 12. Bf4 {[%clk 0:02:29]}  Nb6 {[%clk 0:02:24]} 13. Ne5 {[%clk 0:02:19]}  Bh3 {[%clk 0:02:20]} 14. a4 {[%clk 0:01:59]}  Bxg2 {[%clk 0:02:19]} 15. Kxg2 {[%clk 0:02:00]}  Nbd7 {[%clk 0:02:13]} 16. Nd3 {[%clk 0:01:43]}  a5 {[%clk 0:02:00]} 17. Rfe1 {[%clk 0:01:28]}  Re8 {[%clk 0:01:50]} 18. f3 {[%clk 0:01:21]}  Nf8 {[%clk 0:01:40]} 19. e4 {[%clk 0:01:16]}  dxe4 {[%clk 0:01:40]} 20. fxe4 {[%clk 0:01:16]}  Ne6 {[%clk 0:01:40]} 21. Be3 {[%clk 0:01:13]}  Ng4 {[%clk 0:01:16]} 22. Bg1 {[%clk 0:01:07]}  Ng5 {[%clk 0:01:16]} 23. Nf4 {[%clk 0:00:58]}  Bb4 {[%clk 0:01:15]} 24. e5 {[%clk 0:00:45]}  h5 {[%clk 0:01:05]} 25. Rf1 {[%clk 0:00:37]}  h4 {[%clk 0:00:55]} 26. gxh4 {[%clk 0:00:24]}  Ne6 {[%clk 0:00:54]} 27. Rce1 {[%clk 0:00:23]}  Nh6 {[%clk 0:00:51]} 28. Nh5 {[%clk 0:00:18]}  Nxd4 {[%clk 0:00:46]} 29. Bxd4 {[%clk 0:00:14]}  Qg4+ {[%clk 0:00:46]} 30. Ng3 {[%clk 0:00:15]}  Qxd4 {[%clk 0:00:47]} 31. Re4 {[%clk 0:00:13]}  Qd7 {[%clk 0:00:46]} 32. Ref4 {[%clk 0:00:13]}  Rxe5 {[%clk 0:00:44]} 33. Nce4 {[%clk 0:00:12]}  Rae8 {[%clk 0:00:41]} 34. Ng5 {[%clk 0:00:13]}  R8e7 {[%clk 0:00:35]} 35. Qf3 {[%clk 0:00:11]}  Qd5 {[%clk 0:00:33]} 36. Qxd5 {[%clk 0:00:08]}  Rxd5 {[%clk 0:00:34]} 37. N3e4 {[%clk 0:00:07]}  f6 {[%clk 0:00:30]} 38. Nf3 {[%clk 0:00:05]}  Nf5 {[%clk 0:00:30]} 39. Rf2 {[%clk 0:00:03]}  Ne3+ {[%clk 0:00:29]} 40. Kg3 {[%clk 0:00:03]}  f5 {[%clk 0:00:25]} 41. Neg5 {[%clk 0:00:03]}  Bd6 {[%clk 0:00:26]} 0-1


[Site "https://www.chess.com"]

[Event "Titled Tuesday Blitz November 2 2021"]
[White "Goltseva, Ekaterina"]
[Black "Narayanan.S.L"]
[WhiteFideId "24173770"]
[BlackFideId "5058422"]
[WhiteElo "2059"]
[BlackElo "2570"]
[Result "0-1"]
[Round "02"]
[TimeControl "180+1"]
[Date "2021.11.02"]
[WhiteClock "0:00:08"]
[BlackClock "0:01:16"]

1. d4 {[%clk 0:03:00]}  g6 {[%clk 0:03:00]} 2. c4 {[%clk 0:02:59]}  Bg7 {[%clk 0:03:01]} 3. e4 {[%clk 0:03:00]}  e6 {[%clk 0:03:00]} 4. Nc3 {[%clk 0:03:00]}  Ne7 {[%clk 0:03:01]} 5. Be3 {[%clk 0:03:00]}  d5 {[%clk 0:03:01]} 6. cxd5 {[%clk 0:02:56]}  exd5 {[%clk 0:03:02]} 7. e5 {[%clk 0:02:57]}  c5 {[%clk 0:03:03]} 8. dxc5 {[%clk 0:02:52]}  Nbc6 {[%clk 0:03:03]} 9. Nf3 {[%clk 0:02:15]}  Bg4 {[%clk 0:03:03]} 10. h3 {[%clk 0:02:06]}  Bxf3 {[%clk 0:03:03]} 11. Qxf3 {[%clk 0:02:05]}  Bxe5 {[%clk 0:02:53]} 12. Bh6 {[%clk 0:01:56]}  Nf5 {[%clk 0:02:52]} 13. Bd2 {[%clk 0:01:52]}  Nfd4 {[%clk 0:02:51]} 14. Qd1 {[%clk 0:01:44]}  O-O {[%clk 0:02:49]} 15. Be2 {[%clk 0:01:44]}  Nxe2 {[%clk 0:02:46]} 16. Nxe2 {[%clk 0:01:43]}  Bxb2 {[%clk 0:02:43]} 17. Rb1 {[%clk 0:01:44]}  Ba3 {[%clk 0:02:44]} 18. O-O {[%clk 0:01:43]}  Bxc5 {[%clk 0:02:44]} 19. Rxb7 {[%clk 0:01:43]}  Bb6 {[%clk 0:02:45]} 20. Qa4 {[%clk 0:01:39]}  Qc8 {[%clk 0:02:44]} 21. Qa6 {[%clk 0:01:36]}  Nd8 {[%clk 0:02:43]} 22. Rxb6 {[%clk 0:01:32]}  axb6 {[%clk 0:02:43]} 23. Qxb6 {[%clk 0:01:33]}  Rxa2 {[%clk 0:02:42]} 24. Bc3 {[%clk 0:00:50]}  Qc6 {[%clk 0:02:27]} 25. Qd4 {[%clk 0:00:47]}  f6 {[%clk 0:02:27]} 26. Nf4 {[%clk 0:00:45]}  Ne6 {[%clk 0:02:23]} 27. Qxd5 {[%clk 0:00:42]}  Qxd5 {[%clk 0:02:23]} 28. Nxd5 {[%clk 0:00:43]}  Rc2 {[%clk 0:02:18]} 29. Nxf6+ {[%clk 0:00:36]}  Kf7 {[%clk 0:02:18]} 30. Be5 {[%clk 0:00:35]}  h5 {[%clk 0:02:10]} 31. Rb1 {[%clk 0:00:33]}  Nc5 {[%clk 0:02:09]} 32. Ra1 {[%clk 0:00:30]}  Ke6 {[%clk 0:02:05]} 33. f4 {[%clk 0:00:18]}  Rxf6 {[%clk 0:02:03]} 34. Bxf6 {[%clk 0:00:18]}  Kxf6 {[%clk 0:02:04]} 35. Ra8 {[%clk 0:00:18]}  Ne6 {[%clk 0:02:04]} 36. g3 {[%clk 0:00:17]}  h4 {[%clk 0:02:05]} 37. gxh4 {[%clk 0:00:16]}  Nxf4 {[%clk 0:02:05]} 38. Rh8 {[%clk 0:00:17]}  Nxh3+ {[%clk 0:02:04]} 39. Kf1 {[%clk 0:00:18]}  Kf5 {[%clk 0:02:03]} 40. h5 {[%clk 0:00:18]}  gxh5 {[%clk 0:02:02]} 41. Rxh5+ {[%clk 0:00:18]}  Kg4 {[%clk 0:02:03]} 42. Rh8 {[%clk 0:00:18]}  Nf4 {[%clk 0:02:03]} 43. Rg8+ {[%clk 0:00:18]}  Kf3 {[%clk 0:02:03]} 44. Ke1 {[%clk 0:00:18]}  Ne6 {[%clk 0:01:57]} 45. Re8 {[%clk 0:00:18]}  Ng5 {[%clk 0:01:55]} 46. Rf8+ {[%clk 0:00:18]}  Ke3 {[%clk 0:01:56]} 47. Kd1 {[%clk 0:00:18]}  Rh2 {[%clk 0:01:52]} 48. Re8+ {[%clk 0:00:18]}  Ne4 {[%clk 0:01:53]} 49. Rd8 {[%clk 0:00:17]}  Nc3+ {[%clk 0:01:48]} 50. Kc1 {[%clk 0:00:15]}  Nb5 {[%clk 0:01:47]} 51. Re8+ {[%clk 0:00:15]}  Kd3 {[%clk 0:01:47]} 52. Rd8+ {[%clk 0:00:16]}  Nd4 {[%clk 0:01:48]} 53. Rd7 {[%clk 0:00:13]}  Rh6 {[%clk 0:01:44]} 54. Rd8 {[%clk 0:00:13]}  Rb6 {[%clk 0:01:40]} 55. Rd7 {[%clk 0:00:12]}  Rb8 {[%clk 0:01:41]} 56. Rd6 {[%clk 0:00:09]}  Kc3 {[%clk 0:01:41]} 57. Rd7 {[%clk 0:00:08]}  Rh8 {[%clk 0:01:19]} 58. Rc7+ {[%clk 0:00:08]}  Kd3 {[%clk 0:01:19]} 59. Rd7 {[%clk 0:00:08]}  Rh6 {[%clk 0:01:16]} 60. Rd8 {[%clk 0:00:08]}  Rh7 {[%clk 0:01:16]} 61. Rd6 {[%clk 0:00:08]}  Kc3 {[%clk 0:01:17]} 62. Rd8 {[%clk 0:00:08]}  Rh1# {[%clk 0:01:16]} 0-1


[Site "https://www.chess.com"]

[Event "Titled Tuesday Blitz November 2 2021"]
[White "Gontcharov, Vladislav"]
[Black "Abdrlauf, Elham"]
[WhiteFideId "4123492"]
[BlackFideId "1533533"]
[WhiteElo "2503"]
[BlackElo "2362"]
[Result "0-1"]
[Round "02"]
[TimeControl "180+1"]
[Date "2021.11.02"]
[WhiteClock "0:00:02"]
[BlackClock "0:00:08"]

1. e4 {[%clk 0:03:00]}  c6 {[%clk 0:02:58]} 2. d4 {[%clk 0:02:58]}  d5 {[%clk 0:02:59]} 3. Nc3 {[%clk 0:02:57]}  dxe4 {[%clk 0:03:00]} 4. Nxe4 {[%clk 0:02:57]}  Nf6 {[%clk 0:03:01]} 5. Nxf6+ {[%clk 0:02:57]}  exf6 {[%clk 0:03:01]} 6. c3 {[%clk 0:02:56]}  Bd6 {[%clk 0:03:01]} 7. Bd3 {[%clk 0:02:56]}  O-O {[%clk 0:03:02]} 8. Ne2 {[%clk 0:02:55]}  Re8 {[%clk 0:03:03]} 9. Qc2 {[%clk 0:02:53]}  h5 {[%clk 0:03:03]} 10. h3 {[%clk 0:02:47]}  Nd7 {[%clk 0:03:02]} 11. O-O {[%clk 0:02:42]}  Nf8 {[%clk 0:03:01]} 12. Nf4 {[%clk 0:02:13]}  h4 {[%clk 0:03:00]} 13. Bd2 {[%clk 0:02:08]}  Be6 {[%clk 0:02:58]} 14. Nxe6 {[%clk 0:02:04]}  Nxe6 {[%clk 0:02:59]} 15. Rae1 {[%clk 0:01:53]}  Rc8 {[%clk 0:02:59]} 16. f4 {[%clk 0:01:51]}  Bb8 {[%clk 0:02:58]} 17. Bc4 {[%clk 0:01:39]}  Qd6 {[%clk 0:02:54]} 18. Qf5 {[%clk 0:01:33]}  Re7 {[%clk 0:01:56]} 19. Bc1 {[%clk 0:01:16]}  Rce8 {[%clk 0:01:53]} 20. Qh5 {[%clk 0:01:12]}  g6 {[%clk 0:01:39]} 21. Qxh4 {[%clk 0:01:06]}  Kg7 {[%clk 0:01:39]} 22. Rd1 {[%clk 0:01:01]}  f5 {[%clk 0:01:29]} 23. Qg3 {[%clk 0:00:45]}  Nc7 {[%clk 0:01:22]} 24. Rde1 {[%clk 0:00:40]}  Re4 {[%clk 0:01:18]} 25. Bd3 {[%clk 0:00:27]}  R4e6 {[%clk 0:01:07]} 26. Rxe6 {[%clk 0:00:25]}  Qxe6 {[%clk 0:01:08]} 27. b3 {[%clk 0:00:18]}  Nd5 {[%clk 0:01:08]} 28. Bd2 {[%clk 0:00:18]}  Qf6 {[%clk 0:00:54]} 29. Qf2 {[%clk 0:00:17]}  Qd6 {[%clk 0:00:51]} 30. g3 {[%clk 0:00:17]}  Nf6 {[%clk 0:00:49]} 31. Re1 {[%clk 0:00:14]}  Ne4 {[%clk 0:00:49]} 32. Bxe4 {[%clk 0:00:13]}  fxe4 {[%clk 0:00:50]} 33. c4 {[%clk 0:00:13]}  f5 {[%clk 0:00:44]} 34. Bc3 {[%clk 0:00:13]}  Kf7 {[%clk 0:00:31]} 35. Kg2 {[%clk 0:00:10]}  Qf6 {[%clk 0:00:25]} 36. Qe3 {[%clk 0:00:09]}  Qe7 {[%clk 0:00:20]} 37. Rd1 {[%clk 0:00:08]}  Qa3 {[%clk 0:00:17]} 38. Qe2 {[%clk 0:00:05]}  Bd6 {[%clk 0:00:16]} 39. d5 {[%clk 0:00:05]}  c5 {[%clk 0:00:16]} 40. h4 {[%clk 0:00:04]}  Bf8 {[%clk 0:00:10]} 41. h5 {[%clk 0:00:03]}  Bg7 {[%clk 0:00:10]} 42. hxg6+ {[%clk 0:00:03]}  Kxg6 {[%clk 0:00:11]} 43. Bxg7 {[%clk 0:00:02]}  Kxg7 {[%clk 0:00:12]} 44. Rh1 {[%clk 0:00:02]}  Qa6 {[%clk 0:00:08]} 0-1


[Site "https://www.chess.com"]

[Event "Titled Tuesday Blitz November 2 2021"]
[White "Ingebretsen, Jens E"]
[Black "Abdyzhapar, Asylbek"]
[WhiteFideId "1522965"]
[BlackFideId "13800337"]
[WhiteElo "2072"]
[BlackElo "2383"]
[Result "1-0"]
[Round "02"]
[TimeControl "180+1"]
[Date "2021.11.02"]
[WhiteClock "0:00:31"]
[BlackClock "0:00:17"]

1. d4 {[%clk 0:03:00]}  d5 {[%clk 0:02:59]} 2. c4 {[%clk 0:03:00]}  c6 {[%clk 0:02:59]} 3. Nf3 {[%clk 0:03:00]}  Nf6 {[%clk 0:02:59]} 4. e3 {[%clk 0:03:00]}  e6 {[%clk 0:02:59]} 5. Nc3 {[%clk 0:03:00]}  a6 {[%clk 0:02:59]} 6. a4 {[%clk 0:02:55]}  Bb4 {[%clk 0:02:52]} 7. Bd2 {[%clk 0:02:54]}  O-O {[%clk 0:02:50]} 8. Bd3 {[%clk 0:02:54]}  dxc4 {[%clk 0:02:37]} 9. Bxc4 {[%clk 0:02:54]}  a5 {[%clk 0:02:34]} 10. O-O {[%clk 0:02:53]}  Na6 {[%clk 0:02:33]} 11. Re1 {[%clk 0:02:48]}  c5 {[%clk 0:02:32]} 12. Nb5 {[%clk 0:02:43]}  cxd4 {[%clk 0:02:31]} 13. Nbxd4 {[%clk 0:02:33]}  Bd6 {[%clk 0:02:16]} 14. Nb5 {[%clk 0:02:29]}  Bb8 {[%clk 0:02:16]} 15. Bc3 {[%clk 0:02:29]}  Nb4 {[%clk 0:02:15]} 16. Qxd8 {[%clk 0:02:24]}  Rxd8 {[%clk 0:02:15]} 17. Rad1 {[%clk 0:02:25]}  Bd7 {[%clk 0:02:06]} 18. Ne5 {[%clk 0:02:06]}  Nbd5 {[%clk 0:01:56]} 19. Nxd7 {[%clk 0:02:02]}  Rxd7 {[%clk 0:01:53]} 20. Bxd5 {[%clk 0:01:45]}  Rxd5 {[%clk 0:01:20]} 21. Bxf6 {[%clk 0:01:42]}  gxf6 {[%clk 0:01:20]} 22. Rxd5 {[%clk 0:01:42]}  exd5 {[%clk 0:01:20]} 23. f4 {[%clk 0:01:26]}  Ra6 {[%clk 0:00:59]} 24. Rd1 {[%clk 0:01:23]}  Rc6 {[%clk 0:00:54]} 25. Rxd5 {[%clk 0:01:20]}  Rc8 {[%clk 0:00:53]} 26. Kf2 {[%clk 0:01:15]}  Kf8 {[%clk 0:00:51]} 27. Rd7 {[%clk 0:01:13]}  b6 {[%clk 0:00:42]} 28. Kf3 {[%clk 0:01:10]}  Kg7 {[%clk 0:00:37]} 29. Rb7 {[%clk 0:01:05]}  Rd8 {[%clk 0:00:32]} 30. Rxb6 {[%clk 0:01:05]}  Rc8 {[%clk 0:00:32]} 31. Rb7 {[%clk 0:01:01]}  Kg6 {[%clk 0:00:32]} 32. g4 {[%clk 0:01:00]}  h6 {[%clk 0:00:29]} 33. h3 {[%clk 0:00:54]}  Rd8 {[%clk 0:00:28]} 34. Rb6 {[%clk 0:00:51]}  Kg7 {[%clk 0:00:27]} 35. h4 {[%clk 0:00:50]}  Kg6 {[%clk 0:00:26]} 36. h5+ {[%clk 0:00:50]}  Kg7 {[%clk 0:00:26]} 37. Nd4 {[%clk 0:00:47]}  Ba7 {[%clk 0:00:26]} 38. Nf5+ {[%clk 0:00:47]}  Kf8 {[%clk 0:00:26]} 39. Rxf6 {[%clk 0:00:45]}  Bc5 {[%clk 0:00:25]} 40. Nxh6 {[%clk 0:00:39]}  Rd7 {[%clk 0:00:24]} 41. g5 {[%clk 0:00:37]}  Rb7 {[%clk 0:00:22]} 42. g6 {[%clk 0:00:32]}  Kg7 {[%clk 0:00:21]} 43. Rxf7+ {[%clk 0:00:33]}  Rxf7 {[%clk 0:00:20]} 44. Nxf7 {[%clk 0:00:33]}  Be7 {[%clk 0:00:19]} 45. e4 {[%clk 0:00:33]}  Bb4 {[%clk 0:00:18]} 46. Kg4 {[%clk 0:00:32]}  Bd2 {[%clk 0:00:17]} 47. e5 {[%clk 0:00:32]}  Bc1 {[%clk 0:00:17]} 48. Kf5 {[%clk 0:00:32]}  Bxb2 {[%clk 0:00:17]} 49. h6+ {[%clk 0:00:32]}  Kf8 {[%clk 0:00:16]} 50. h7 {[%clk 0:00:31]}  Ke7 {[%clk 0:00:17]} 51. h8=Q {[%clk 0:00:31]} 1-0


[Site "https://www.chess.com"]

[Event "Titled Tuesday Blitz November 2 2021"]
[White "Iskusnyh, Sergei"]
[Black "Nakamura, Hikaru"]
[WhiteFideId "4120027"]
[BlackFideId "2016192"]
[WhiteElo "2492"]
[BlackElo "2884"]
[Result "0-1"]
[Round "02"]
[TimeControl "180+1"]
[Date "2021.11.02"]
[WhiteClock "0:00:03"]
[BlackClock "0:01:24"]

1. e4 {[%clk 0:02:59]}  c5 {[%clk 0:02:58]} 2. Nf3 {[%clk 0:02:59]}  d6 {[%clk 0:02:58]} 3. Bb5+ {[%clk 0:02:59]}  Bd7 {[%clk 0:02:57]} 4. Bxd7+ {[%clk 0:03:00]}  Nxd7 {[%clk 0:02:58]} 5. O-O {[%clk 0:02:56]}  Ngf6 {[%clk 0:02:58]} 6. Re1 {[%clk 0:02:56]}  e6 {[%clk 0:02:58]} 7. c3 {[%clk 0:02:57]}  Be7 {[%clk 0:02:54]} 8. d4 {[%clk 0:02:57]}  cxd4 {[%clk 0:02:55]} 9. cxd4 {[%clk 0:02:57]}  d5 {[%clk 0:02:56]} 10. e5 {[%clk 0:02:56]}  Ne4 {[%clk 0:02:56]} 11. Nbd2 {[%clk 0:02:57]}  Nxd2 {[%clk 0:02:55]} 12. Bxd2 {[%clk 0:02:57]}  Rc8 {[%clk 0:02:56]} 13. Rc1 {[%clk 0:02:53]}  Rxc1 {[%clk 0:02:51]} 14. Qxc1 {[%clk 0:02:53]}  Nb8 {[%clk 0:02:51]} 15. Qc2 {[%clk 0:02:34]}  Nc6 {[%clk 0:02:51]} 16. Qb3 {[%clk 0:02:31]}  Qb6 {[%clk 0:02:49]} 17. Qxb6 {[%clk 0:02:28]}  axb6 {[%clk 0:02:50]} 18. Rc1 {[%clk 0:02:25]}  b5 {[%clk 0:02:48]} 19. a3 {[%clk 0:02:22]}  Kd7 {[%clk 0:02:47]} 20. Kf1 {[%clk 0:02:22]}  Ra8 {[%clk 0:02:43]} 21. Ke2 {[%clk 0:02:21]}  Ra4 {[%clk 0:02:42]} 22. Kd3 {[%clk 0:02:19]}  f6 {[%clk 0:02:42]} 23. exf6 {[%clk 0:01:28]}  gxf6 {[%clk 0:02:43]} 24. Bc3 {[%clk 0:01:29]}  b4 {[%clk 0:02:31]} 25. axb4 {[%clk 0:01:26]}  Bxb4 {[%clk 0:02:31]} 26. h4 {[%clk 0:01:10]}  h5 {[%clk 0:02:22]} 27. Rg1 {[%clk 0:01:02]}  Bxc3 {[%clk 0:02:11]} 28. bxc3 {[%clk 0:00:59]}  e5 {[%clk 0:02:12]} 29. dxe5 {[%clk 0:00:57]}  fxe5 {[%clk 0:02:11]} 30. Nd2 {[%clk 0:00:56]}  Rxh4 {[%clk 0:02:10]} 31. Rb1 {[%clk 0:00:53]}  Kc7 {[%clk 0:02:05]} 32. g3 {[%clk 0:00:43]}  Rh3 {[%clk 0:01:54]} 33. Ke2 {[%clk 0:00:36]}  h4 {[%clk 0:01:52]} 34. Kf3 {[%clk 0:00:33]}  hxg3 {[%clk 0:01:52]} 35. fxg3 {[%clk 0:00:32]}  Rh2 {[%clk 0:01:51]} 36. Nf1 {[%clk 0:00:30]}  Rc2 {[%clk 0:01:51]} 37. Rb3 {[%clk 0:00:29]}  d4 {[%clk 0:01:50]} 38. Ke4 {[%clk 0:00:18]}  dxc3 {[%clk 0:01:39]} 39. Ne3 {[%clk 0:00:17]}  Ra2 {[%clk 0:01:39]} 40. Rxc3 {[%clk 0:00:17]}  Kd6 {[%clk 0:01:36]} 41. g4 {[%clk 0:00:06]}  Ra4+ {[%clk 0:01:34]} 42. Rc4 {[%clk 0:00:02]}  Ra8 {[%clk 0:01:30]} 43. g5 {[%clk 0:00:01]}  Ke6 {[%clk 0:01:30]} 44. Nd5 {[%clk 0:00:01]}  Ra1 {[%clk 0:01:26]} 45. Ne3 {[%clk 0:00:01]}  Rg1 {[%clk 0:01:25]} 46. Rc5 {[%clk 0:00:01]}  Rxg5 {[%clk 0:01:24]} 47. Rb5 {[%clk 0:00:01]}  Rg7 {[%clk 0:01:24]} 48. Nf5 {[%clk 0:00:01]}  Rg4+ {[%clk 0:01:24]} 49. Kf3 {[%clk 0:00:01]}  Kxf5 {[%clk 0:01:25]} 50. Rxb7 {[%clk 0:00:02]}  Rc4 {[%clk 0:01:25]} 51. Ke3 {[%clk 0:00:03]}  Ke6 {[%clk 0:01:24]} 0-1


[Site "https://www.chess.com"]

[Event "Titled Tuesday Blitz November 2 2021"]
[White "Karpeshov, Oleg"]
[Black "Andreikin, Dmitry"]
[WhiteFideId "4106814"]
[BlackFideId "4158814"]
[WhiteElo "2354"]
[BlackElo "2736"]
[Result "0-1"]
[Round "02"]
[TimeControl "180+1"]
[Date "2021.11.02"]
[WhiteClock "0:01:28"]
[BlackClock "0:01:18"]

1. d4 {[%clk 0:02:59]}  g6 {[%clk 0:02:59]} 2. e4 {[%clk 0:02:59]}  Bg7 {[%clk 0:02:59]} 3. Nf3 {[%clk 0:02:58]}  d6 {[%clk 0:02:59]} 4. Bd3 {[%clk 0:02:58]}  Nc6 {[%clk 0:02:56]} 5. O-O {[%clk 0:02:59]}  Bg4 {[%clk 0:02:54]} 6. c3 {[%clk 0:03:00]}  e5 {[%clk 0:02:54]} 7. d5 {[%clk 0:02:55]}  Nce7 {[%clk 0:02:53]} 8. c4 {[%clk 0:02:50]}  f5 {[%clk 0:02:52]} 9. h3 {[%clk 0:02:50]}  Bh5 {[%clk 0:02:48]} 10. Be2 {[%clk 0:02:50]}  h6 {[%clk 0:02:43]} 11. Nc3 {[%clk 0:02:46]}  Nf6 {[%clk 0:02:42]} 12. exf5 {[%clk 0:02:45]}  gxf5 {[%clk 0:02:41]} 13. Nh4 {[%clk 0:02:44]}  Bxe2 {[%clk 0:02:40]} 14. Qxe2 {[%clk 0:02:44]}  Qd7 {[%clk 0:02:39]} 15. f4 {[%clk 0:02:44]}  e4 {[%clk 0:02:39]} 16. Be3 {[%clk 0:02:43]}  O-O {[%clk 0:02:32]} 17. Rad1 {[%clk 0:02:41]}  Kh7 {[%clk 0:02:28]} 18. Kh1 {[%clk 0:02:39]}  Rf7 {[%clk 0:02:26]} 19. Rg1 {[%clk 0:02:38]}  Rg8 {[%clk 0:02:27]} 20. g4 {[%clk 0:02:35]}  fxg4 {[%clk 0:02:16]} 21. hxg4 {[%clk 0:02:35]}  h5 {[%clk 0:02:16]} 22. f5 {[%clk 0:01:56]}  Nxg4 {[%clk 0:02:02]} 23. Nxe4 {[%clk 0:01:55]}  Be5 {[%clk 0:01:46]} 24. Ng5+ {[%clk 0:01:45]}  Rxg5 {[%clk 0:01:46]} 25. Bxg5 {[%clk 0:01:45]}  Nxf5 {[%clk 0:01:47]} 26. Rxg4 {[%clk 0:01:45]}  hxg4 {[%clk 0:01:43]} 27. Qe4 {[%clk 0:01:44]}  Kg7 {[%clk 0:01:32]} 28. Rg1 {[%clk 0:01:40]}  Nxh4 {[%clk 0:01:21]} 29. Rxg4 {[%clk 0:01:28]}  Rf1+ {[%clk 0:01:18]} 0-1


[Site "https://www.chess.com"]